[Event "Icelandic Chess-ch 2023"]
[Site "Hafnarfjordur"]
[Date "2023.05.15"]
[Round "1.5"]
[White "Heimisson, Hilmir Freyr"]
[Black "Stefansson, Vignir Vatnar"]
[Result "1/2-1/2"]
[ECO "C67"]
[WhiteElo "2353"]
[BlackElo "2470"]
[Annotator "TA"]
[PlyCount "60"]
[EventDate "2023.05.13"]
[EventType "tourn"]
[EventCountry "ISL"]
[SourceTitle "playchess.com"]
[Source "ChessBase"]
[SourceQuality "1"]
[TimeControl "40/5400+30:1800+30"]

{[%evp 15,60,15,8,0,16,16,20,11,13,9,21,10,17,14,13,14,15,15,15,15,14,12,14,14,16,6,12,4,4,0,0,0,0,0,0,0,0,0,10,0,6,0,7,7,13,7,7]} 1. e4 {[%emt 0:00:06]} e5 {[%emt 0:00:38]} 2. Nf3 {[%emt 0:00:21]} Nc6 {[%emt 0:00:07]} 3. Bb5 {[%emt 0:00:13]} Nf6 {[%emt 0:00:50]} 4. O-O {[%emt 0:00:40][%cal Bh1f1,Bf1e1,Be1e5][%mdl 32]} Nxe4 {[%emt 0:00:08]} 5. Re1 {[%emt 0:00:06]} Nd6 {[%emt 0:00:05]} 6. Nxe5 {[%emt 0:00:19]} Be7 {[%emt 0:00:13]} 7. Bf1 {[%emt 0:00:41]} Nxe5 {[%emt 0:00:07]} 8. Rxe5 {[%emt 0:00:07]} O-O {[%emt 0:00:04] The position is equal.} 9. Nc3 {[%emt 0:02:38][%cal Bb1c3,Bc3d5,Bd5e3,Be3f5][%mdl 32] C67: Ruy Lopez: Berlin Defence: 4 0-0 Nxe4.} Ne8 {[%emt 0:01:39]} (9... Bf6 $5 {[%cal Rf6e5]} 10. Re1 b6 $11) 10. Nd5 {[%emt 0:00:30] Black is weak on the light squares} Bd6 {[%emt 0:00:06]} 11. Re1 {[%emt 0:00:10]} c6 {[%emt 0:00:11]} ({Don't do} 11... Qh4 12. g3 Qd8 13. Ne3 $16) 12. Ne3 {[%emt 0:00:55]} Be7 {[%emt 0:01:06]} ({Don't play} 12... Qh4 13. g3 Qf6 14. d4 $16) 13. Nf5 {[%emt 0:01:29]} Bg5 {[%emt 0:00:12]} 14. d4 {[%emt 0:13:12]} Bxc1 {[%emt 0:00:24]} 15. Rxc1 {[%emt 0:00:09][%cal Ba1c1,Bc1c2,Bc2e2][%mdl 32]} d5 {[%emt 0:00:05]} 16. Ne7+ {[%emt 0:00:05]} Kh8 {[%emt 0:00:04] [#] aiming for ...Be6.} 17. Nxc8 {[%emt 0:00:10]} Rxc8 {[%emt 0:00:14][%cal Ba8c8,Bc8c7,Bc7e7][%mdl 32]} 18. c3 {[%emt 0:01:50] [#]} Nf6 $146 {[%emt 0:04:41]} ({Predecessor:} 18... Nd6 19. Bd3 Re8 20. Re5 Qd7 21. Qf3 f6 22. Ree1 Rxe1+ 23. Rxe1 Re8 24. Rxe8+ Qxe8 {½-½ Bacrot,E (2678)-So,W (2770) Paris GCT Rapid 2021 (9)}) 19. Bd3 {[%emt 0:03:58]} Re8 {[%emt 0:00:18]} 20. Rc2 {[%emt 0:01:28]} Rc7 {[%emt 0:00:58]} 21. Rce2 {[%emt 0:04:32]} Rce7 {[%emt 0:00:11]} 22. f3 {[%emt 0:02:53]} g6 {[%emt 0:02:32]} 23. Qd2 {[%emt 0:02:47]} Kg7 {[%emt 0:00:16]} 24. Kf2 {[%emt 0:04:37]} Rxe2+ {[%emt 0:03:27]} 25. Rxe2 {[%emt 0:01:20]} Rxe2+ {[%emt 0:00:05]} 26. Qxe2 $11 {[%emt 0:06:55] KQB-KQN} Qe8 {[%emt 0:00:06]} 27. Qd2 {[%emt 0:00:48]} Qb8 {[%emt 0:01:50]} 28. g3 {[%emt 0:00:49]} Qd6 {[%emt 0:00:09]} 29. Qe3 {[%emt 0:00:51]} h5 {[%emt 0:01:42]} 30. h4 {[%emt 0:04:09]} a5 {[%emt 0:00:05] An uneventful encounter.   Weighted Error Value: White=0.03 (flawless) /Black=0.03 (flawless)} 1/2-1/2

[Event "Icelandic Chess-ch 2023"]
[Site "Hafnarfjordur"]
[Date "2023.05.15"]
[Round "1.6"]
[White "Gretarsson, Hjorvar Steinn"]
[Black "Hjartarson, Johann"]
[Result "1/2-1/2"]
[ECO "B42"]
[WhiteElo "2539"]
[BlackElo "2466"]
[Annotator "TA"]
[PlyCount "129"]
[EventDate "2023.05.13"]
[EventType "tourn"]
[EventCountry "ISL"]
[SourceTitle "playchess.com"]
[Source "ChessBase"]
[SourceQuality "1"]
[TimeControl "40/5400+30:1800+30"]

{[%evp 15,129,44,50,35,35,16,26,33,33,36,46,0,0,7,0,-4,-4,-2,0,-27,-33,-43,-34,-31,-7,-29,-25,-36,-17,-98,21,16,16,17,16,22,77,0,16,16,16,16,16,17,17,17,17,17,17,16,122,117,127,38,38,38,38,38,38,38,39,36,54,54,54,54,54,54,54,54,54,54,54,54,54,54,54,54,54,54,91,54,91,54,54,54,54,0,54,17,54,36,36,36,36,36,36,36,36,36,43,43,43,43,43,43,43,8,8,18,43,0,0,8,14,0]} 1. e4 {[%emt 0:00:30]} c5 {[%emt 0:03:20]} 2. Nf3 {[%emt 0:00:00]} e6 {[%emt 0:00:10]} 3. d4 {[%emt 0:00:03]} cxd4 {[%emt 0:00:05]} 4. Nxd4 {[%emt 0:00:04]} a6 {[%emt 0:00:19]} 5. Bd3 {[%emt 0:00:18]} Nf6 {[%emt 0:06:12]} 6. O-O {[%emt 0:01:42]} Qc7 {[%emt 0:00:16]} 7. Qe2 {[%emt 0:01:25]} d6 {[%emt 0:00:13]} 8. c4 {[%emt 0:01:22]} Nbd7 $1 {[%emt 0:03:45][%mdl 4] is currently scoring better than 8...g6.} 9. Nc3 {[%emt 0:09:01] B42: Sicilian: Kan Variation: 5 Bd3.} Ne5 {[%emt 0:04:14]} 10. f4 {[%emt 0:08:19]} Nxd3 {[%emt 0:00:12]} (10... Qb6 {with more complications.} 11. Be3 Nfg4 12. Na4 Qa5) 11. Qxd3 {[%emt 0:00:04] White has an edge.} Be7 {[%emt 0:02:58]} 12. b3 {[%emt 0:01:24]} b6 {[%emt 0:13:20]} 13. Bb2 {[%emt 0:08:14]} (13. Kh1 $14 {is superior.}) 13... O-O $11 {[%emt 0:03:41]} 14. Kh1 {[%emt 0:05:16]} Bb7 {[%emt 0:08:48]} 15. f5 {[%emt 0:05:28]} e5 {[%emt 0:02:40]} 16. Nc2 {[%emt 0:01:46] [#]} b5 $1 {[%emt 0:08:17] [#]} 17. cxb5 $146 {[%emt 0:07:50]} (17. Ne3 Rfc8) ({Predecessor:} 17. Ne3 bxc4 18. bxc4 Rfc8 19. Rfd1 Rab8 20. Rab1 Qc5 21. Bc1 Bc6 22. Rxb8 Rxb8 23. h3 {1-0 Baskin,R (2381)-Hahn,M (2271) Pfalz op-A 11th 2020 (6)}) 17... axb5 {[%emt 0:00:37]} 18. Nb4 {[%emt 0:01:47]} Qc5 {[%emt 0:02:26]} 19. a3 {[%emt 0:02:13]} Rfc8 {[%emt 0:05:40]} 20. Rae1 {[%emt 0:12:18]} (20. Rac1 $5 {[%cal Rc3d5]} Qb6 21. Ncd5 Nxd5 22. Nxd5 Bxd5 23. Qxd5 $11) 20... h6 {[%emt 0:05:38]} 21. h3 {[%emt 0:02:06]} Bd8 {[%emt 0:03:06]} 22. Qxb5 {[%emt 0:08:32] [#]} (22. Rd1 $11) 22... Bxe4 {[%emt 0:08:49]} 23. Qxc5 {[%emt 0:02:39]} dxc5 {[%emt 0:00:07]} 24. Nxe4 {[%emt 0:01:53]} cxb4 {[%emt 0:00:05]} 25. a4 {[%emt 0:02:50]} Nd7 {[%emt 0:04:04]} (25... Bc7 $11 {remains equal.}) 26. Rd1 {[%emt 0:04:29]} ({White should try} 26. Rc1 $16) 26... Rc2 {[%emt 0:04:04]} 27. Rxd7 {[%emt 0:03:01]} Rxb2 {[%emt 0:00:04]} 28. f6 {[%emt 0:00:33]} Bxf6 {[%emt 0:03:40]} ({Resist} 28... Rxb3 29. fxg7 Re3 30. Rfxf7 $18) 29. Nxf6+ {[%emt 0:00:06]} gxf6 {[%emt 0:00:06]} 30. Rxf6 {[%emt 0:00:22]} Rxb3 {[%emt 0:03:10]} 31. Rfxf7 {[%emt 0:00:13][%mdl 4096] Endgame Black must now prevent Rg7+. KRR-KRR} Rg3 {[%emt 0:00:07] Against Rg7+} ({Much less strong is} 31... Rxa4 32. Rg7+ Kh8 33. Rh7+ Kg8 34. Rdg7+ Kf8 35. Rd7 $16 (35. Rf7+ Kg8 $16)) 32. Rfe7 {[%emt 0:01:42]} b3 {[%emt 0:01:05]} (32... Rxa4 $2 33. Re8#) (32... Rb8 $11) 33. Rb7 $16 {[%emt 0:01:23]} Kf8 {[%emt 0:01:16]} 34. Kh2 {[%emt 0:02:11]} (34. Rh7 $16) 34... Rg6 $1 $14 {[%emt 0:00:53][%cal Og6b6]} 35. Rxe5 {[%emt 0:02:37] Threatens to win with Re4.} Rxa4 {[%emt 0:00:23]} 36. Rc5 {[%emt 0:01:15][%cal Rc5c8]} Ra8 {[%emt 0:00:16] Repels Rc8+} 37. Rxb3 {[%emt 0:01:00]} Kg8 {[%emt 0:01:00]} 38. g4 {[%emt 0:01:27]} Ra7 {[%emt 0:00:37]} 39. Kg3 {[%emt 0:00:13]} Kh7 {[%emt 0:01:09]} 40. Kh4 {[%emt 0:00:21]} Rd7 {[%emt 0:01:27]} 41. Rb8 {[%emt 0:31:19]} Rg8 {[%emt 0:02:12]} 42. Rbb5 {[%emt 0:00:00]} Rg6 {[%emt 0:03:37]} 43. Kh5 {[%emt 0:00:00]} Rdg7 {[%emt 0:00:44]} 44. Rf5 {[%emt 0:00:00]} Rg8 {[%emt 0:01:07]} 45. Kh4 {[%emt 0:00:00]} Rd6 {[%emt 0:02:03]} 46. Rfe5 {[%emt 0:00:00]} Kg6 {[%emt 0:00:39]} 47. Rb7 {[%emt 0:00:00]} Ra6 {[%emt 0:00:19]} 48. Re3 {[%emt 0:00:00] White has more active pieces.} Rc6 {[%emt 0:01:50]} 49. Rb5 {[%emt 0:00:00]} Rgc8 {[%emt 0:00:47]} 50. Ree5 {[%emt 0:00:00]} R8c7 {[%emt 0:00:57]} 51. Re3 {[%emt 0:00:00]} Rc8 $1 {[%emt 0:00:23]} 52. Rf3 {[%emt 0:00:00]} R8c7 {[%emt 0:00:39]} 53. Kg3 {[%emt 0:00:00]} Rc3 {[%emt 0:00:37]} 54. Rb6+ {[%emt 0:00:00]} Kg7 {[%emt 0:00:07]} 55. Rb3 {[%emt 0:00:00]} Rxb3 {[%emt 0:00:36]} 56. Rxb3 {[%emt 0:00:00] KR-KR} Rc6 {[%emt 0:01:11]} 57. h4 {[%emt 0:00:00]} h5 {[%emt 0:01:23]} 58. g5 {[%emt 0:00:00]} Rc4 {[%emt 0:02:33]} 59. Rb7+ {[%emt 0:00:00]} Kg6 {[%emt 0:00:06]} 60. Rb6+ {[%emt 0:00:00]} Kg7 {[%emt 0:00:07]} 61. Rh6 {[%emt 0:00:00]} Rg4+ {[%emt 0:00:06]} 62. Kh3 {[%emt 0:00:00]} Ra4 {[%emt 0:00:05]} 63. Rxh5 {[%emt 0:00:00] Rh6 is the strong threat.} (63. Rf6 $5 {[%cal Rf6h6]}) 63... Ra6 {[%emt 0:00:08] Against Rh6} 64. Kg4 {[%emt 0:01:47]} Rb6 {[%emt 0:00:21]} 65. Rh6 {[%emt 0:00:21] Weighted Error Value: White=0.15 (very precise) /Black=0.12 (very precise)} 1/2-1/2

[Event "Icelandic Chess-ch 2023"]
[Site "Hafnarfjordur"]
[Date "2023.05.16"]
[Round "2.1"]
[White "Ptacnikova, Lenka"]
[Black "Hjartarson, Johann"]
[Result "1/2-1/2"]
[ECO "E67"]
[WhiteElo "2099"]
[BlackElo "2466"]
[Annotator "TA"]
[PlyCount "103"]
[EventDate "2023.05.13"]
[EventType "tourn"]
[EventCountry "ISL"]
[SourceTitle "playchess.com"]
[Source "ChessBase"]
[SourceQuality "1"]
[TimeControl "40/5400+30:1800+30"]

{[%evp 17,103,10,12,2,12,-17,0,-14,-14,-20,-13,-8,-2,-36,-37,-59,-37,-54,-53,-64,0,0,0,-2,0,0,15,-1,0,0,15,-23,-15,-16,-13,-15,-63,-45,-26,-93,-64,-70,-63,-76,0,-91,-106,-99,0,0,0,0,0,0,0,0,0,0,71,70,102,0,0,0,32,32,32,32,32,32,32,32,32,32,32,32,32,32,32,32,32,32,32,32,32,32,32,32]} 1. c4 {[%emt 0:00:02]} Nf6 {[%emt 0:01:45]} 2. g3 {[%emt 0:00:23]} g6 {[%emt 0:00:17]} 3. Bg2 {[%emt 0:00:03]} Bg7 {[%emt 0:00:07]} 4. Nc3 {[%emt 0:00:37]} O-O {[%emt 0:00:42]} 5. d4 {[%emt 0:06:27]} d6 {[%emt 0:00:30]} 6. Nf3 {[%emt 0:00:22]} Nbd7 {[%emt 0:00:28]} 7. O-O {[%emt 0:00:54]} e5 {[%emt 0:00:08]} 8. dxe5 {[%emt 0:05:15]} dxe5 {[%emt 0:00:49]} 9. Bg5 {[%emt 0:01:21]} h6 {[%emt 0:02:39]} 10. Bd2 {[%emt 0:02:21] E67: King's Indian: Fianchetto: 6...Nbd7.} c6 {[%emt 0:01:10] [#]} 11. Ne1 $146 {[%emt 0:05:30][%cal Bf3e1,Be1c2,Bc2e3,Be3c4,Bc4d6][%mdl 32]} ({Predecessor:} 11. Qc1 Kh7 12. b4 e4 13. Nh4 Re8 14. c5 Qe7 15. Bh1 a5 16. a3 axb4 17. axb4 Rxa1 18. Qxa1 {0-1 Li,X (2328)-Murzin,V (2464) RBI op Qualifier 1 blitz 2020 (4)}) 11... Re8 {[%emt 0:06:51]} 12. Nc2 {[%emt 0:01:53] The position is equal.} Qe7 {[%emt 0:03:03]} 13. Rb1 {[%emt 0:11:24]} a5 {[%emt 0:05:35]} 14. b3 {[%emt 0:01:53]} Nc5 {[%emt 0:00:47]} 15. Ne3 {[%emt 0:07:15]} Nfd7 {[%emt 0:03:06]} 16. a3 {[%emt 0:04:43]} Ne6 {[%emt 0:15:19]} 17. b4 {[%emt 0:00:26]} axb4 {[%emt 0:00:18]} 18. axb4 {[%emt 0:00:02]} Nd4 {[%emt 0:02:06]} (18... f5 $15) 19. c5 $1 $11 {[%emt 0:01:32]} Nf6 {[%emt 0:07:18]} 20. Nc4 $1 {[%emt 0:02:52]} Bf5 {[%emt 0:00:55]} 21. Rb2 {[%emt 0:00:57]} Red8 {[%emt 0:13:31]} 22. Nd6 {[%emt 0:04:30]} Be6 {[%emt 0:03:12]} 23. b5 {[%emt 0:02:30]} Ra3 {[%emt 0:03:16]} 24. bxc6 {[%emt 0:05:57]} bxc6 {[%emt 0:00:13]} 25. Rb7 {[%emt 0:02:10]} Qf8 {[%emt 0:01:12]} 26. Nce4 {[%emt 0:10:42]} Nxe4 {[%emt 0:00:55]} 27. Bxe4 {[%emt 0:00:42]} f5 {[%emt 0:05:52]} 28. e3 {[%emt 0:07:28]} (28. Bg2 $11) 28... fxe4 {[%emt 0:05:09]} 29. exd4 {[%emt 0:00:11]} exd4 {[%emt 0:01:03]} 30. Nxe4 {[%emt 0:00:29]} Bd5 {[%emt 0:02:59] A strong pair of Bishops.} (30... Rd7 $17 31. Rxd7 Bxd7) 31. f3 {[%emt 0:01:18]} (31. Qg4 $1 $11 Qf5 32. Qxf5 gxf5 33. Bxh6 (33. Nd6 Rf8 $11) 33... Bxh6 34. Nf6+ Kf8 35. Nh7+ Kg8 36. Nf6+ Kf8 37. Nh7+ Kg8 38. Nf6+) 31... Rda8 $17 {[%emt 0:04:51][%cal Oa3a1]} 32. Bf4 {[%emt 0:01:09]} Bxe4 {[%emt 0:01:01]} (32... g5 $17 33. Bc1 (33. Bd6 Qf5 $19) 33... R3a7 34. Rxa7 Rxa7) 33. fxe4 $11 {[%emt 0:01:02]} Qxc5 {[%emt 0:00:15] [#] ...d3+ is the strong threat.} 34. Qg4 {[%emt 0:02:18] Intending Qe6+ and mate.} d3+ {[%emt 0:00:45]} 35. Kh1 {[%emt 0:00:18] Qe6+ would kill now.} R3a7 {[%emt 0:05:50]} 36. Rxa7 {[%emt 0:01:23]} Qxa7 {[%emt 0:02:27]} 37. Qxg6 {[%emt 0:00:25]} Rf8 {[%emt 0:00:36]} (37... Qd4 $11 {remains equal.}) 38. Qxc6 $16 {[%emt 0:01:10] Qd5+ would be deadly.} Qd4 {[%emt 0:00:20]} 39. Qd5+ {[%emt 0:04:09]} ({Better is} 39. Kg2 $16) 39... Qxd5 $1 $11 {[%emt 0:00:34]} 40. exd5 {[%emt 0:00:03][%mdl 4096] Endgame And now Rd1 would win. KRB-KRB} Rf5 {[%emt 0:00:25]} 41. d6 {[%emt 0:31:44] Threatens to win with Rd1. White is slightly better.} Rd5 {[%emt 0:07:02]} 42. Kg2 {[%emt 0:00:00]} h5 {[%emt 0:04:33]} ({Much less strong is} 42... d2 43. Rd1 Bc3 44. Kf2 $16 (44. Bxh6 Rxd6 45. Be3 Re6 $16)) 43. Kf3 {[%emt 0:00:00]} d2 {[%emt 0:00:17]} 44. Rd1 {[%emt 0:00:00]} Bc3 {[%emt 0:00:25][%cal Oh5h4]} 45. Ke2 {[%emt 0:00:00][%cal Rf4d2]} Bb4 {[%emt 0:00:25]} 46. Bxd2 {[%emt 0:00:00]} Bxd6 {[%emt 0:00:15][%cal Oh5h4]} 47. Bf4 {[%emt 0:00:00][%mdl 64] [#] Discovered Attack} Rxd1 {[%emt 0:00:07]} 48. Kxd1 {[%emt 0:00:00]} Be7 {[%emt 0:00:14]} 49. Ke2 {[%emt 0:00:00]} Kf7 {[%emt 0:00:05]} 50. Kf3 {[%emt 0:00:00]} Kg6 {[%emt 0:00:05]} 51. Ke4 {[%emt 0:00:00]} Bf6 {[%emt 0:00:13]} 52. h3 {[%emt 0:00:00] Weighted Error Value: White=0.15 (very precise) /Black=0.16 (very precise)} 1/2-1/2

[Event "Icelandic Chess-ch 2023"]
[Site "Hafnarfjordur"]
[Date "2023.05.16"]
[Round "2.2"]
[White "Stefansson, Vignir Vatnar"]
[Black "Gretarsson, Hjorvar Steinn"]
[Result "1/2-1/2"]
[ECO "B90"]
[WhiteElo "2470"]
[BlackElo "2539"]
[Annotator "TA"]
[PlyCount "66"]
[EventDate "2023.05.13"]
[EventType "tourn"]
[EventCountry "ISL"]
[SourceTitle "playchess.com"]
[Source "ChessBase"]
[SourceQuality "1"]
[TimeControl "40/5400+30:1800+30"]

{[%evp 10,66,30,-18,32,0,0,0,0,2,6,-23,16,0,10,0,0,0,29,11,64,50,52,52,70,68,85,27,31,30,29,29,27,28,18,11,27,25,20,22,12,18,22,12,12,12,14,6,9,0,0,0,0,0,0,0,0,0,0]} 1. e4 {[%emt 0:00:04]} c5 {[%emt 0:00:06]} 2. Nf3 {[%emt 0:00:06]} d6 {[%emt 0:00:04]} 3. d4 {[%emt 0:00:04]} cxd4 {[%emt 0:00:06]} 4. Nxd4 {[%emt 0:00:04]} Nf6 {[%emt 0:00:07]} 5. Nc3 {[%emt 0:00:04]} a6 {[%emt 0:00:04]} 6. Rg1 {[%emt 0:00:16]} (6. Bg5 $142) 6... h5 {[%emt 0:01:25] B90: Sicilian Najdorf: Unusual White 6th moves, 6 Be3 Ng4 and 6 Be3 e5.} (6... b5 $11) 7. Be3 {[%emt 0:00:09]} e6 {[%emt 0:03:04]} 8. h3 {[%emt 0:01:52][%cal Bh2h3,Bh3g4,Bg4g5][%mdl 32]} b5 $1 {[%emt 0:03:54]} 9. a3 {[%emt 0:06:12]} Bb7 {[%emt 0:02:58]} 10. Bd3 {[%emt 0:06:36] [#]} Nc6 $146 {[%emt 0:11:37]} ({Predecessor:} 10... e5 11. Nb3 h4 12. Qd2 Nbd7 13. f4 Be7 14. O-O-O Rc8 15. Kb1 Qc7 16. Qf2 Nc5 17. Nxc5 dxc5 18. fxe5 Qxe5 {½-½ Kacharava,N (2512)-Mendonca,L (2558) Wch U20 59th 2022 (10)}) 11. Nxc6 {[%emt 0:08:24]} Bxc6 {[%emt 0:00:09]} 12. g4 {[%emt 0:00:22]} hxg4 {[%emt 0:06:20]} 13. hxg4 {[%emt 0:00:07]} g6 {[%emt 0:07:49]} 14. Qd2 {[%emt 0:17:06]} Bg7 {[%emt 0:22:31]} ({Black should play} 14... Rb8 $11) 15. Bd4 {[%emt 0:03:08]} e5 {[%emt 0:02:35]} 16. Be3 {[%emt 0:00:22]} Qd7 {[%emt 0:02:17]} 17. g5 {[%emt 0:04:39]} Ng4 {[%emt 0:10:22]} 18. O-O-O {[%emt 0:04:33]} (18. Bb6 $16) 18... Nxe3 $11 {[%emt 0:00:57]} 19. Qxe3 {[%emt 0:00:27]} Qa7 {[%emt 0:10:55]} 20. Qxa7 {[%emt 0:12:08]} Rxa7 {[%emt 0:00:01]} 21. Rh1 {[%emt 0:00:06] Dodges Bf8} Rxh1 {[%emt 0:01:51]} 22. Rxh1 {[%emt 0:00:05]} f6 {[%emt 0:02:34]} 23. gxf6 {[%emt 0:00:30]} Bxf6 {[%emt 0:00:06]} 24. Nd5 {[%emt 0:00:10] The position is equal.} Rf7 {[%emt 0:04:16]} 25. Kd1 {[%emt 0:01:16]} Kf8 {[%emt 0:03:36]} 26. c3 {[%emt 0:05:12]} Kg7 {[%emt 0:00:15]} 27. Ke2 {[%emt 0:00:06]} Bd8 {[%emt 0:00:38]} 28. b4 {[%emt 0:01:54]} a5 {[%emt 0:02:25]} 29. Rb1 {[%emt 0:01:30]} Ra7 {[%emt 0:01:00]} 30. c4 {[%emt 0:01:55]} axb4 {[%emt 0:00:39]} 31. Nxb4 {[%emt 0:03:18]} bxc4 {[%emt 0:00:06]} 32. Nxc6 {[%emt 0:00:04]} cxd3+ {[%emt 0:00:05]} 33. Kd1 {[%emt 0:00:02]} Ra8 {[%emt 0:01:14] Weighted Error Value: White=0.11 (very precise) /Black=0.09 (flawless)} (33... Rxa3 $2 34. Nxd8 Ra4 35. Rb3 $18) 1/2-1/2

[Event "Icelandic Chess-ch 2023"]
[Site "Hafnarfjordur"]
[Date "2023.05.16"]
[Round "2.3"]
[White "Kjartansson, Gudmundur"]
[Black "Heimisson, Hilmir Freyr"]
[Result "1/2-1/2"]
[ECO "A37"]
[WhiteElo "2402"]
[BlackElo "2353"]
[Annotator "TA"]
[PlyCount "107"]
[EventDate "2023.05.13"]
[EventType "tourn"]
[EventCountry "ISL"]
[SourceTitle "playchess.com"]
[Source "ChessBase"]
[SourceQuality "1"]
[TimeControl "40/5400+30:1800+30"]

{[%evp 12,107,18,0,0,0,0,-6,-5,0,-4,-8,-8,-9,-6,-3,-3,-40,0,0,0,0,-14,-9,0,0,2,6,8,0,25,27,27,28,21,21,21,21,21,21,21,21,41,29,29,29,29,26,61,23,23,0,17,18,18,10,20,0,37,0,0,0,0,0,0,0,0,0,0,0,16,16,16,0,0,0,15,15,15,15,15,15,15,0,0,0,0,0,0,0,0,0,0,0,0,0,0,0]} 1. c4 {[%emt 0:00:04]} c5 {[%emt 0:00:06]} 2. Nf3 {[%emt 0:00:17]} Nc6 {[%emt 0:00:23]} 3. Nc3 {[%emt 0:00:12]} e5 {[%emt 0:00:00]} 4. g3 {[%emt 0:04:27]} g6 {[%emt 0:00:12]} 5. Bg2 {[%emt 0:00:20]} Bg7 {[%emt 0:00:15]} 6. d3 {[%emt 0:03:12]} d6 {[%emt 0:00:39]} 7. Nd2 {[%emt 0:02:45]} Nge7 {[%emt 0:00:34] A37: Symmetrical English vs ...g6: 4 Bg2 Bg7 5 Nf3.} 8. Nf1 {[%emt 0:02:27]} Rb8 {[%emt 0:00:28]} 9. Ne3 {[%emt 0:03:06]} a6 {[%emt 0:00:11]} 10. Ned5 {[%emt 0:01:07]} Nxd5 {[%emt 0:05:07]} 11. Nxd5 {[%emt 0:00:40]} O-O {[%emt 0:02:26]} 12. h4 {[%emt 0:05:26]} h6 {[%emt 0:02:57] [#]} 13. Bd2 $146 {[%emt 0:07:48]} ({Predecessor:} 13. h5 g5 14. e4 f5 15. exf5 Bxf5 16. O-O b5 17. g4 Be6 18. Be4 Kh8 19. f3 {0-1 Leer Salvesen,B (2349)-Miezis,N (2530) NOR-chT 0910 2009 (1)}) 13... Bg4 {[%emt 0:12:57]} 14. Qc1 {[%emt 0:06:03]} Kh7 {[%emt 0:01:04]} (14... Nd4 $5 {[%cal Rd4e2]} 15. f3 Be6 $11) 15. h5 {[%emt 0:01:44] [#] aiming for Be4.} g5 $1 {[%emt 0:04:12]} 16. Ne3 {[%emt 0:01:21]} Be6 {[%emt 0:06:03]} 17. g4 $1 {[%emt 0:00:27]} Ne7 {[%emt 0:01:51]} 18. Be4+ {[%emt 0:01:10]} f5 {[%emt 0:01:35]} 19. gxf5 {[%emt 0:00:29]} Nxf5 {[%emt 0:00:38]} 20. f3 {[%emt 0:10:11]} Kh8 {[%emt 0:01:24]} 21. Nxf5 {[%emt 0:00:26]} Bxf5 {[%emt 0:00:10] [#]} 22. Bxg5 $1 {[%emt 0:16:02]} Qxg5 {[%emt 0:18:53]} 23. Qxg5 {[%emt 0:00:15]} hxg5 {[%emt 0:00:06]} 24. h6 {[%emt 0:00:04]} Bxe4 {[%emt 0:01:07]} 25. hxg7+ {[%emt 0:00:04]} Kxg7 {[%emt 0:00:11] Strongly threatening ...Rh8.} 26. dxe4 $11 {[%emt 0:00:57][%mdl 4096] Endgame KRR-KRR} Rf6 {[%emt 0:00:13]} 27. a4 {[%emt 0:14:32]} Rg6 {[%emt 0:10:03]} 28. Rg1 {[%emt 0:02:50]} Kf6 {[%emt 0:00:59]} 29. Kf2 {[%emt 0:01:47]} Rh8 {[%emt 0:02:40][%cal Og5g4]} 30. Rad1 {[%emt 0:02:05]} Ke6 {[%emt 0:00:20]} 31. Rh1 {[%emt 0:05:57]} Rgh6 {[%emt 0:03:23]} 32. Rxh6+ {[%emt 0:02:50]} Rxh6 {[%emt 0:00:03] KR-KR} 33. Kg3 {[%emt 0:00:08]} Rh4 {[%emt 0:01:18]} 34. Kg2 {[%emt 0:03:34]} Rh8 {[%emt 0:14:00][%cal Ob7b5]} 35. Rh1 {[%emt 0:00:27]} Rb8 {[%emt 0:00:02] The position is equal.} 36. Kg3 {[%emt 0:01:48]} b5 {[%emt 0:00:15]} 37. cxb5 {[%emt 0:00:42]} axb5 {[%emt 0:00:03]} 38. a5 {[%emt 0:00:06]} Ra8 {[%emt 0:03:57]} 39. Ra1 {[%emt 0:00:02]} d5 {[%emt 0:02:38]} 40. a6 {[%emt 0:01:45]} d4 {[%emt 0:03:20]} 41. b3 {[%emt 0:07:33]} c4 {[%emt 0:13:34]} 42. bxc4 {[%emt 0:10:05]} bxc4 {[%emt 0:00:03]} 43. Kg4 {[%emt 0:01:07]} d3 {[%emt 0:03:19]} 44. exd3 {[%emt 0:00:10]} (44. Kxg5 $2 {perishes.} d2 45. f4 Rg8+ 46. Kh4 exf4 $19) 44... cxd3 {[%emt 0:00:07]} 45. Rd1 {[%emt 0:11:03]} (45. Kxg5 {seems wilder.} d2 46. Kg4 Rg8+ 47. Kh4) 45... Rxa6 {[%emt 0:03:38]} 46. Rxd3 {[%emt 0:00:02]} Ra1 {[%emt 0:00:36]} 47. Rb3 {[%emt 0:00:31]} Rg1+ {[%emt 0:00:50]} 48. Kh5 {[%emt 0:00:07]} Kf6 {[%emt 0:01:59]} 49. Rb6+ {[%emt 0:00:16]} Kf7 {[%emt 0:00:16]} 50. Ra6 {[%emt 0:02:06]} Rg3 {[%emt 0:01:34]} 51. Ra3 {[%emt 0:00:32]} Kf6 {[%emt 0:00:49]} 52. Ra6+ {[%emt 0:00:04]} Kf7 {[%emt 0:00:10]} 53. Ra3 {[%emt 0:00:14]} Kf6 {[%emt 0:00:16]} 54. Ra6+ {[%emt 0:00:04] Weighted Error Value: White=0.04 (flawless) /Black=0.06 (flawless)} 1/2-1/2